[Event "Late-Titled-Tuesday-Blitz-May-14-2024"]
[Site "Chess.com"]
[Date "2024.05.14"]
[Round "1"]
[White "Atanejhad"]
[Black "MarcoRiehle"]
[Result "0-1"]
[WhiteElo "2439"]
[BlackElo "2788"]
[TimeControl "180+1"]
[EndTime "14:07:07 PDT"]
[Termination "MarcoRiehle won by resignation"]

1. d4 {[%clk 0:03:00.9]} 1... d5 {[%clk 0:02:50.6]} 2. c4 {[%clk 0:03:00.3]}
2... e6 {[%clk 0:02:48.6]} 3. Nc3 {[%clk 0:02:59.7]} 3... c5 {[%clk 0:02:47.2]}
4. e3 {[%clk 0:02:59.3]} 4... cxd4 {[%clk 0:02:46.7]} 5. exd4 {[%clk 0:03:00.2]}
5... Nf6 {[%clk 0:02:46.8]} 6. Nf3 {[%clk 0:03:00.3]} 6... Be7 {[%clk
0:02:46.5]} 7. Bd3 {[%clk 0:02:59.6]} 7... dxc4 {[%clk 0:02:46.4]} 8. Bxc4
{[%clk 0:03:00.5]} 8... O-O {[%clk 0:02:46.7]} 9. O-O {[%clk 0:03:00]} 9... a6
{[%clk 0:02:46.4]} 10. a4 {[%clk 0:02:56.2]} 10... Nc6 {[%clk 0:02:45.1]} 11.
Bg5 {[%clk 0:02:55.6]} 11... Nb4 {[%clk 0:02:44.2]} 12. Rc1 {[%clk 0:02:53.6]}
12... h6 {[%clk 0:02:40.3]} 13. Bh4 {[%clk 0:02:50.9]} 13... Nfd5 {[%clk
0:02:38.9]} 14. Bxe7 {[%clk 0:02:46]} 14... Qxe7 {[%clk 0:02:33.2]} 15. Re1
{[%clk 0:02:45.5]} 15... Qd8 {[%clk 0:02:30.1]} 16. Ne5 {[%clk 0:02:41.4]} 16...
Bd7 {[%clk 0:02:17.7]} 17. Ne4 {[%clk 0:02:36.2]} 17... Be8 {[%clk 0:01:55.7]}
18. Nc5 {[%clk 0:02:07.6]} 18... b6 {[%clk 0:01:50]} 19. Ne4 {[%clk 0:02:04.6]}
19... Rc8 {[%clk 0:01:42.7]} 20. b3 {[%clk 0:01:59.5]} 20... b5 {[%clk
0:01:19.1]} 21. axb5 {[%clk 0:02:00.4]} 21... Bxb5 {[%clk 0:01:17.2]} 22. Nc5
{[%clk 0:01:57]} 22... Qd6 {[%clk 0:01:05.4]} 23. Qd2 {[%clk 0:01:34.9]} 23...
Rfd8 {[%clk 0:01:01.5]} 24. Nxf7 {[%clk 0:01:05.2]} 24... Kxf7 {[%clk
0:00:59.6]} 25. Rxe6 {[%clk 0:01:04.3]} 25... Qf4 {[%clk 0:00:50.2]} 26. Qxf4+
{[%clk 0:00:42.1]} 26... Nxf4 {[%clk 0:00:49.3]} 27. Rxa6+ {[%clk 0:00:25.8]}
27... Bxc4 {[%clk 0:00:48.1]} 28. Ra7+ {[%clk 0:00:24.7]} 28... Kg8 {[%clk
0:00:45.6]} 29. Rxc4 {[%clk 0:00:23.3]} 29... Rxd4 {[%clk 0:00:39.7]} 30. Rxd4
{[%clk 0:00:20.9]} 30... Ne2+ {[%clk 0:00:40.4]} 31. Kf1 {[%clk 0:00:19.9]}
31... Nxd4 {[%clk 0:00:41.3]} 32. Ra5 {[%clk 0:00:10.6]} 32... Na6 {[%clk
0:00:37.2]} 33. Rxa6 {[%clk 0:00:09.6]} 33... Rxc5 {[%clk 0:00:37.5]} 34. f3
{[%clk 0:00:10]} 34... Nxb3 {[%clk 0:00:36.5]} 35. Rb6 {[%clk 0:00:10.6]} 35...
Nd4 {[%clk 0:00:35]} 36. Kf2 {[%clk 0:00:10.8]} 36... Rc2+ {[%clk 0:00:34.8]}
37. Ke3 {[%clk 0:00:10]} 37... Nf5+ {[%clk 0:00:33.5]} 38. Kf4 {[%clk
0:00:10.1]} 38... Ne7 {[%clk 0:00:34]} 39. Re6 {[%clk 0:00:08.5]} 39... Kf7
{[%clk 0:00:32.8]} 0-1

[Event "Late-Titled-Tuesday-Blitz-May-14-2024"]
[Site "Chess.com"]
[Date "2024.05.14"]
[Round "1"]
[White "VictorFcQNK"]
[Black "ImportedItalianMaple"]
[Result "0-1"]
[WhiteElo "2116"]
[BlackElo "2570"]
[TimeControl "180+1"]
[EndTime "14:07:07 PDT"]
[Termination "ImportedItalianMaple won by resignation"]

1. d4 {[%clk 0:02:59.4]} 1... g6 {[%clk 0:03:00.4]} 2. Nf3 {[%clk 0:02:58.8]}
2... Bg7 {[%clk 0:03:00.9]} 3. Nc3 {[%clk 0:02:57.5]} 3... d6 {[%clk 0:02:59.4]}
4. e4 {[%clk 0:02:56.6]} 4... a6 {[%clk 0:02:59.8]} 5. h3 {[%clk 0:02:56.1]}
5... b5 {[%clk 0:03:00]} 6. a3 {[%clk 0:02:51.4]} 6... Bb7 {[%clk 0:02:59.9]} 7.
Bd3 {[%clk 0:02:48.4]} 7... Nd7 {[%clk 0:03:00.2]} 8. O-O {[%clk 0:02:41.2]}
8... c5 {[%clk 0:03:00]} 9. Be3 {[%clk 0:02:33.2]} 9... c4 {[%clk 0:02:56.5]}
10. Be2 {[%clk 0:02:33.1]} 10... Ngf6 {[%clk 0:02:55]} 11. e5 {[%clk 0:02:21.8]}
11... Nd5 {[%clk 0:02:55.2]} 12. e6 {[%clk 0:02:07.3]} 12... fxe6 {[%clk
0:02:47.5]} 13. Ng5 {[%clk 0:01:59.1]} 13... Nf8 {[%clk 0:02:46.9]} 14. Bg4
{[%clk 0:01:33.5]} 14... Qd7 {[%clk 0:02:16.2]} 15. Qf3 {[%clk 0:01:24.5]} 15...
Nf6 {[%clk 0:02:15.3]} 16. d5 {[%clk 0:01:20.3]} 16... Qc8 {[%clk 0:01:42.8]}
17. Nxe6 {[%clk 0:01:16.2]} 17... Nxe6 {[%clk 0:01:42.7]} 18. Bxe6 {[%clk
0:01:15.2]} 18... Qxe6 {[%clk 0:01:43.3]} 19. dxe6 {[%clk 0:01:15.2]} 19... Bxf3
{[%clk 0:01:43.9]} 20. gxf3 {[%clk 0:01:15.2]} 20... O-O {[%clk 0:01:00.6]} 21.
Rad1 {[%clk 0:01:12.7]} 21... Nh5 {[%clk 0:00:51.9]} 22. Kg2 {[%clk 0:01:01.5]}
22... Bxc3 {[%clk 0:00:52]} 23. bxc3 {[%clk 0:00:59.8]} 23... Rf6 {[%clk
0:00:48.2]} 24. Bg5 {[%clk 0:00:43.7]} 24... Rxe6 {[%clk 0:00:48.3]} 25. Rfe1
{[%clk 0:00:44.2]} 25... Rxe1 {[%clk 0:00:44.1]} 26. Rxe1 {[%clk 0:00:44.3]}
26... Re8 {[%clk 0:00:30]} 27. Rxe7 {[%clk 0:00:40]} 27... Rxe7 {[%clk
0:00:30.4]} 28. Bxe7 {[%clk 0:00:39.8]} 28... d5 {[%clk 0:00:29.7]} 29. Bd6
{[%clk 0:00:35.4]} 29... Kf7 {[%clk 0:00:29.5]} 30. Be5 {[%clk 0:00:29.9]} 30...
Ke6 {[%clk 0:00:29.6]} 31. f4 {[%clk 0:00:28.5]} 31... Kf5 {[%clk 0:00:23.4]}
32. Kf3 {[%clk 0:00:28.5]} 32... g5 {[%clk 0:00:24]} 33. Bc7 {[%clk 0:00:19.8]}
33... Nxf4 {[%clk 0:00:19.9]} 34. Bb6 {[%clk 0:00:14.5]} 34... Nxh3 {[%clk
0:00:19.3]} 35. Bc7 {[%clk 0:00:13.1]} 35... h5 {[%clk 0:00:17.4]} 36. Kg3
{[%clk 0:00:12.2]} 36... Nf4 {[%clk 0:00:18]} 37. Kf3 {[%clk 0:00:12.5]} 37...
g4+ {[%clk 0:00:17.4]} 38. Kg3 {[%clk 0:00:12.2]} 38... Ne2+ {[%clk 0:00:17.8]}
0-1

[Event "Late-Titled-Tuesday-Blitz-May-14-2024"]
[Site "Chess.com"]
[Date "2024.05.14"]
[Round "1"]
[White "imdvb6307"]
[Black "KuzubovYuriy"]
[Result "0-1"]
[WhiteElo "2521"]
[BlackElo "2924"]
[TimeControl "180+1"]
[EndTime "14:07:09 PDT"]
[Termination "KuzubovYuriy won by resignation"]

1. d4 {[%clk 0:02:59.4]} 1... Nf6 {[%clk 0:02:59.8]} 2. Nf3 {[%clk 0:02:59.4]}
2... e6 {[%clk 0:03:00.4]} 3. Bg5 {[%clk 0:02:58.8]} 3... d5 {[%clk 0:02:59.7]}
4. e3 {[%clk 0:02:56]} 4... c5 {[%clk 0:02:57.1]} 5. c3 {[%clk 0:02:55]} 5...
Nc6 {[%clk 0:02:57.6]} 6. Nbd2 {[%clk 0:02:53.6]} 6... h6 {[%clk 0:02:58.3]} 7.
Bh4 {[%clk 0:02:52.8]} 7... g5 {[%clk 0:02:58.9]} 8. Bg3 {[%clk 0:02:52.5]} 8...
Nh5 {[%clk 0:02:59.7]} 9. Bd3 {[%clk 0:02:04.5]} 9... Qb6 {[%clk 0:02:53.2]} 10.
Rb1 {[%clk 0:01:56.3]} 10... Nxg3 {[%clk 0:02:52.5]} 11. hxg3 {[%clk 0:01:55.8]}
11... Bg7 {[%clk 0:02:53.2]} 12. O-O {[%clk 0:01:44.4]} 12... Bd7 {[%clk
0:02:44.4]} 13. dxc5 {[%clk 0:01:42.9]} 13... Qxc5 {[%clk 0:02:44.6]} 14. e4
{[%clk 0:01:43]} 14... dxe4 {[%clk 0:02:41.9]} 15. Nxe4 {[%clk 0:01:41.7]} 15...
Qe7 {[%clk 0:02:42.6]} 16. Nfd2 {[%clk 0:01:13.9]} 16... Rd8 {[%clk 0:02:38.7]}
17. Nc4 {[%clk 0:01:10.4]} 17... Bc8 {[%clk 0:02:38.5]} 18. Qe2 {[%clk
0:01:08.7]} 18... O-O {[%clk 0:02:28.2]} 19. a4 {[%clk 0:01:07.3]} 19... Rd5
{[%clk 0:02:20.5]} 20. g4 {[%clk 0:01:00.6]} 20... Rfd8 {[%clk 0:02:19.6]} 21.
Rbd1 {[%clk 0:01:00.1]} 21... Qc7 {[%clk 0:01:48.4]} 22. Ne3 {[%clk 0:00:48.2]}
22... R5d7 {[%clk 0:01:46.7]} 23. Nc5 {[%clk 0:00:45.2]} 23... Re7 {[%clk
0:01:46.4]} 24. Nc4 {[%clk 0:00:32.8]} 24... b6 {[%clk 0:01:42]} 25. Ne4 {[%clk
0:00:30.6]} 25... Red7 {[%clk 0:01:38.7]} 26. Ng3 {[%clk 0:00:28.8]} 26... Ne5
{[%clk 0:01:23.7]} 27. Nxe5 {[%clk 0:00:28.2]} 27... Qxe5 {[%clk 0:01:24.5]} 28.
Nh5 {[%clk 0:00:19.4]} 28... Qxe2 {[%clk 0:01:24]} 29. Bxe2 {[%clk 0:00:19.6]}
29... Be5 {[%clk 0:01:21.7]} 30. Rxd7 {[%clk 0:00:17.9]} 30... Rxd7 {[%clk
0:01:20.7]} 31. Rd1 {[%clk 0:00:18.3]} 31... Kf8 {[%clk 0:01:19.2]} 32. Rxd7
{[%clk 0:00:17.7]} 32... Bxd7 {[%clk 0:01:19.3]} 33. Bd1 {[%clk 0:00:17.7]}
33... Ke7 {[%clk 0:01:15.9]} 34. Kf1 {[%clk 0:00:17.5]} 34... f5 {[%clk
0:01:14.5]} 35. f3 {[%clk 0:00:16]} 35... f4 {[%clk 0:01:12.9]} 36. Kf2 {[%clk
0:00:15.3]} 36... Kd6 {[%clk 0:01:12]} 37. g3 {[%clk 0:00:15]} 37... a5 {[%clk
0:01:11]} 38. gxf4 {[%clk 0:00:14.5]} 38... gxf4 {[%clk 0:01:11.6]} 39. Bc2
{[%clk 0:00:12.9]} 39... Kc5 {[%clk 0:01:10.1]} 40. Bb3 {[%clk 0:00:13.2]} 40...
Kd6 {[%clk 0:01:06]} 41. Kg2 {[%clk 0:00:13.4]} 41... Bc6 {[%clk 0:01:05.7]} 42.
Bd1 {[%clk 0:00:12.4]} 42... Kc5 {[%clk 0:01:04.4]} 43. Bb3 {[%clk 0:00:12.4]}
43... Bd5 {[%clk 0:01:04.8]} 44. Bd1 {[%clk 0:00:12]} 44... Bc4 {[%clk
0:01:03.6]} 45. Bc2 {[%clk 0:00:11.6]} 45... b5 {[%clk 0:01:03.2]} 46. Kf2
{[%clk 0:00:11.7]} 46... b4 {[%clk 0:01:00.1]} 47. cxb4+ {[%clk 0:00:11.8]}
47... Kxb4 {[%clk 0:01:00.1]} 48. Be4 {[%clk 0:00:08.4]} 48... Kb3 {[%clk
0:00:59.2]} 49. Kg2 {[%clk 0:00:08.4]} 49... Kxb2 {[%clk 0:00:59.5]} 50. Kh3
{[%clk 0:00:08.7]} 50... Bb3 {[%clk 0:00:58.9]} 51. Kh4 {[%clk 0:00:08.8]} 51...
Bxa4 {[%clk 0:00:58.6]} 52. g5 {[%clk 0:00:08.6]} 52... hxg5+ {[%clk 0:00:58.8]}
53. Kxg5 {[%clk 0:00:09]} 53... Bb3 {[%clk 0:00:58.8]} 54. Nxf4 {[%clk
0:00:08.2]} 54... Bxf4+ {[%clk 0:00:58.8]} 55. Kxf4 {[%clk 0:00:08.4]} 55... a4
{[%clk 0:00:59.4]} 0-1

[Event "Late-Titled-Tuesday-Blitz-May-14-2024"]
[Site "Chess.com"]
[Date "2024.05.14"]
[Round "1"]
[White "jaramsdal"]
[Black "Bryanl106"]
[Result "0-1"]
[WhiteElo "2370"]
[BlackElo "2693"]
[TimeControl "180+1"]
[EndTime "14:07:10 PDT"]
[Termination "Bryanl106 won by resignation"]

1. e4 {[%clk 0:02:11.3]} 1... e5 {[%clk 0:02:59.4]} 2. Nf3 {[%clk 0:02:10.5]}
2... Nc6 {[%clk 0:03:00.1]} 3. Bc4 {[%clk 0:02:09.6]} 3... Nf6 {[%clk
0:03:00.1]} 4. d3 {[%clk 0:02:10.1]} 4... Bc5 {[%clk 0:03:00.1]} 5. O-O {[%clk
0:02:09.6]} 5... d6 {[%clk 0:03:00.5]} 6. c3 {[%clk 0:02:10]} 6... a5 {[%clk
0:03:01]} 7. Nbd2 {[%clk 0:02:08.2]} 7... O-O {[%clk 0:02:59.3]} 8. h3 {[%clk
0:02:08.7]} 8... h6 {[%clk 0:02:59.2]} 9. Re1 {[%clk 0:02:09.1]} 9... a4 {[%clk
0:02:59.1]} 10. Nf1 {[%clk 0:02:08.5]} 10... Bd7 {[%clk 0:02:54.4]} 11. Bb5
{[%clk 0:01:52.3]} 11... Nd4 {[%clk 0:02:47.5]} 12. cxd4 {[%clk 0:01:42]} 12...
Bxb5 {[%clk 0:02:40.2]} 13. dxc5 {[%clk 0:01:42]} 13... dxc5 {[%clk 0:02:41.1]}
14. Nxe5 {[%clk 0:01:36.1]} 14... Re8 {[%clk 0:02:40.6]} 15. Bf4 {[%clk
0:01:34.1]} 15... Qd4 {[%clk 0:02:38.3]} 16. Nf3 {[%clk 0:01:28.4]} 16... Qxb2
{[%clk 0:02:38.1]} 17. Rb1 {[%clk 0:01:26.4]} 17... Qxa2 {[%clk 0:02:37.8]} 18.
Rxb5 {[%clk 0:01:25.2]} 18... c4 {[%clk 0:02:34.7]} 19. Qb1 {[%clk 0:01:19.1]}
19... Qxb1 {[%clk 0:02:33.9]} 20. Rbxb1 {[%clk 0:01:20]} 20... cxd3 {[%clk
0:02:34.3]} 21. Ng3 {[%clk 0:01:17.1]} 21... c5 {[%clk 0:02:28.7]} 22. Rxb7
{[%clk 0:01:16.2]} 22... Rec8 {[%clk 0:02:27.9]} 23. Be5 {[%clk 0:01:12.5]}
23... a3 {[%clk 0:02:23.5]} 24. Ra1 {[%clk 0:01:11.7]} 24... c4 {[%clk
0:02:21.7]} 25. Bc3 {[%clk 0:01:10.6]} 25... Ne8 {[%clk 0:02:20.6]} 26. Nd2
{[%clk 0:01:09.5]} 26... Nd6 {[%clk 0:02:16.9]} 27. Rb4 {[%clk 0:01:09.1]} 27...
Rc5 {[%clk 0:02:13.1]} 28. Nf5 {[%clk 0:01:08.1]} 28... Nb5 {[%clk 0:02:12.2]}
29. Bxg7 {[%clk 0:00:55.2]} 29... c3 {[%clk 0:02:01.8]} 30. Bxc3 {[%clk
0:00:54.1]} 30... Nxc3 {[%clk 0:02:01.5]} 31. Rc4 {[%clk 0:00:39.6]} 31... Rxc4
{[%clk 0:02:00.3]} 32. Nxc4 {[%clk 0:00:40.5]} 32... a2 {[%clk 0:02:01.2]} 33.
Ne7+ {[%clk 0:00:31.2]} 33... Kf8 {[%clk 0:01:59.3]} 34. Nd5 {[%clk 0:00:32.1]}
34... Nxe4 {[%clk 0:01:51.6]} 35. f3 {[%clk 0:00:24.4]} 35... Nc5 {[%clk
0:01:50.2]} 36. Nc3 {[%clk 0:00:21.1]} 36... Nb3 {[%clk 0:01:47.8]} 37. Rxa2
{[%clk 0:00:21.3]} 37... Rc8 {[%clk 0:01:46.7]} 38. Ra4 {[%clk 0:00:15]} 38...
d2 {[%clk 0:01:41.7]} 39. Nd1 {[%clk 0:00:10.9]} 39... Re8 {[%clk 0:01:35.2]}
40. Kf2 {[%clk 0:00:10.8]} 40... Re1 {[%clk 0:01:34.1]} 41. Nce3 {[%clk
0:00:11.1]} 41... Nc1 {[%clk 0:01:33.8]} 42. Rd4 {[%clk 0:00:10]} 42... Re2+
{[%clk 0:01:34.3]} 43. Kg3 {[%clk 0:00:09]} 43... Nb3 {[%clk 0:01:34.3]} 44. f4
{[%clk 0:00:08.1]} 44... Nxd4 {[%clk 0:01:34.5]} 45. h4 {[%clk 0:00:05.8]} 45...
Re1 {[%clk 0:01:31.9]} 46. Kf2 {[%clk 0:00:05.1]} 46... Re2+ {[%clk 0:01:30.4]}
47. Kg3 {[%clk 0:00:05.6]} 47... h5 {[%clk 0:01:29.3]} 48. f5 {[%clk 0:00:05.5]}
48... Re1 {[%clk 0:01:27.1]} 49. Kf2 {[%clk 0:00:05.3]} 49... Nxf5 {[%clk
0:01:25.8]} 50. Nxf5 {[%clk 0:00:03.7]} 50... Rxd1 {[%clk 0:01:25.9]} 51. Ke2
{[%clk 0:00:04.4]} 51... Rg1 {[%clk 0:01:26]} 52. Kxd2 {[%clk 0:00:05]} 52...
Rxg2+ {[%clk 0:01:26.6]} 53. Ke3 {[%clk 0:00:05.5]} 53... Rg4 {[%clk 0:01:26.9]}
54. Kf3 {[%clk 0:00:05.5]} 54... Rg6 {[%clk 0:01:27.3]} 55. Ng3 {[%clk
0:00:04.5]} 55... Rh6 {[%clk 0:01:25.4]} 56. Kf4 {[%clk 0:00:05.1]} 56... Rf6+
{[%clk 0:01:24]} 57. Kg5 {[%clk 0:00:05.2]} 57... Rg6+ {[%clk 0:01:24.3]} 58.
Kf4 {[%clk 0:00:04.9]} 58... Rg4+ {[%clk 0:01:22.5]} 59. Kf3 {[%clk 0:00:04.1]}
59... Rxh4 {[%clk 0:01:23.4]} 60. Nf5 {[%clk 0:00:04.6]} 60... Rg4 {[%clk
0:01:23.6]} 61. Ng3 {[%clk 0:00:04.5]} 61... Rg6 {[%clk 0:01:24.5]} 62. Nf5
{[%clk 0:00:04.8]} 62... Rf6 {[%clk 0:01:24.6]} 63. Kf4 {[%clk 0:00:05]} 63...
Rxf5+ {[%clk 0:01:25.5]} 64. Kxf5 {[%clk 0:00:05.9]} 64... Ke7 {[%clk
0:01:25.6]} 65. Kg5 {[%clk 0:00:06.8]} 65... Ke6 {[%clk 0:01:26.1]} 66. Kxh5
{[%clk 0:00:07.4]} 66... Kf5 {[%clk 0:01:26.8]} 67. Kh4 {[%clk 0:00:07.6]} 67...
Kf4 {[%clk 0:01:27.4]} 68. Kh3 {[%clk 0:00:07.3]} 68... Kf3 {[%clk 0:01:28.1]}
69. Kh4 {[%clk 0:00:07.6]} 69... f5 {[%clk 0:01:28]} 70. Kg5 {[%clk 0:00:08.5]}
70... f4 {[%clk 0:01:28.5]} 71. Kf5 {[%clk 0:00:09.4]} 71... Ke3 {[%clk
0:01:28.5]} 0-1

[Event "Late-Titled-Tuesday-Blitz-May-14-2024"]
[Site "Chess.com"]
[Date "2024.05.14"]
[Round "1"]
[White "cukus"]
[Black "GelmanAlexander"]
[Result "0-1"]
[WhiteElo "2340"]
[BlackElo "2663"]
[TimeControl "180+1"]
[EndTime "14:07:12 PDT"]
[Termination "GelmanAlexander won on time"]

1. e4 {[%clk 0:02:59.6]} 1... c5 {[%clk 0:02:59.7]} 2. Nf3 {[%clk 0:02:57.6]}
2... e6 {[%clk 0:02:59.9]} 3. d4 {[%clk 0:02:56.6]} 3... cxd4 {[%clk 0:03:00]}
4. Nxd4 {[%clk 0:02:57.5]} 4... a6 {[%clk 0:03:00.4]} 5. Bd3 {[%clk 0:02:51.6]}
5... d6 {[%clk 0:03:00.5]} 6. O-O {[%clk 0:02:51.3]} 6... Nf6 {[%clk 0:02:59.7]}
7. Qe2 {[%clk 0:02:49.9]} 7... Be7 {[%clk 0:02:59.1]} 8. c4 {[%clk 0:02:47]}
8... b6 {[%clk 0:02:58.6]} 9. Nc3 {[%clk 0:02:47]} 9... Bb7 {[%clk 0:02:58.8]}
10. b3 {[%clk 0:02:46.2]} 10... Nbd7 {[%clk 0:02:59]} 11. Bb2 {[%clk 0:02:46.5]}
11... Ne5 {[%clk 0:02:57.2]} 12. f4 {[%clk 0:02:41.5]} 12... Nxd3 {[%clk
0:02:55.8]} 13. Qxd3 {[%clk 0:02:42.4]} 13... O-O {[%clk 0:02:55.7]} 14. Rad1
{[%clk 0:02:33.5]} 14... Nd7 {[%clk 0:02:48.7]} 15. Nf3 {[%clk 0:02:25.8]} 15...
Qc7 {[%clk 0:02:46]} 16. Kh1 {[%clk 0:02:21.5]} 16... Rfd8 {[%clk 0:02:41.1]}
17. Qe2 {[%clk 0:02:20.7]} 17... Bf6 {[%clk 0:02:39]} 18. Rd2 {[%clk 0:01:48.6]}
18... Nc5 {[%clk 0:02:36.4]} 19. e5 {[%clk 0:01:45.7]} 19... Bxf3 {[%clk
0:02:28.2]} 20. Qxf3 {[%clk 0:01:22.5]} 20... dxe5 {[%clk 0:02:28.5]} 21. fxe5
{[%clk 0:01:18.6]} 21... Bxe5 {[%clk 0:02:18.4]} 22. Rdf2 {[%clk 0:01:04.6]}
22... Nd3 {[%clk 0:02:11.3]} 23. Re2 {[%clk 0:01:04.6]} 23... Nxb2 {[%clk
0:02:04]} 24. Rxb2 {[%clk 0:01:04.3]} 24... Bxh2 {[%clk 0:02:00.2]} 25. Ne4
{[%clk 0:01:00.9]} 25... Be5 {[%clk 0:01:57.6]} 26. Re2 {[%clk 0:00:57.6]} 26...
h6 {[%clk 0:01:56.8]} 27. Ref2 {[%clk 0:00:47.5]} 27... Rf8 {[%clk 0:01:55.7]}
28. Qh5 {[%clk 0:00:45.9]} 28... f5 {[%clk 0:01:48.4]} 29. Qg6 {[%clk
0:00:41.2]} 29... Rae8 {[%clk 0:01:39.1]} 30. Nd2 {[%clk 0:00:33.5]} 30... Qf7
{[%clk 0:01:36.7]} 31. Qxf7+ {[%clk 0:00:32.9]} 31... Rxf7 {[%clk 0:01:37.5]}
32. Nf3 {[%clk 0:00:31.9]} 32... Bf6 {[%clk 0:01:37.4]} 33. Rd1 {[%clk 0:00:31]}
33... e5 {[%clk 0:01:31.7]} 34. Ng1 {[%clk 0:00:28.4]} 34... f4 {[%clk
0:01:27.4]} 35. Ne2 {[%clk 0:00:26.2]} 35... g5 {[%clk 0:01:24.6]} 36. Nc3
{[%clk 0:00:26]} 36... e4 {[%clk 0:01:25.2]} 37. Nd5 {[%clk 0:00:24.3]} 37... e3
{[%clk 0:01:25.5]} 38. Re2 {[%clk 0:00:20.4]} 38... Bd8 {[%clk 0:01:24.8]} 39.
b4 {[%clk 0:00:16.6]} 39... Rf5 {[%clk 0:01:18.6]} 40. c5 {[%clk 0:00:15.1]}
40... bxc5 {[%clk 0:01:18.7]} 41. bxc5 {[%clk 0:00:15.2]} 41... Ba5 {[%clk
0:01:15.9]} 42. c6 {[%clk 0:00:09.5]} 42... Kf7 {[%clk 0:01:16.4]} 43. Rb2
{[%clk 0:00:08.7]} 43... e2 {[%clk 0:01:14.7]} 44. Rb7+ {[%clk 0:00:07.9]} 44...
Kg6 {[%clk 0:01:12.5]} 45. Re1 {[%clk 0:00:01.6]} 45... Bxe1 {[%clk 0:01:11.8]}
46. Ne7+ {[%clk 0:00:02.5]} 46... Rxe7 {[%clk 0:01:11.6]} 47. Rxe7 {[%clk
0:00:03.4]} 47... Ba5 {[%clk 0:01:03]} 48. Rxe2 {[%clk 0:00:03.3]} 48... Rc5
{[%clk 0:01:03.7]} 49. Re6+ {[%clk 0:00:02.7]} 49... Kh5 {[%clk 0:01:03.7]} 50.
Kh2 {[%clk 0:00:02.1]} 50... g4 {[%clk 0:00:59.3]} 51. a4 {[%clk 0:00:02.1]}
51... Kg5 {[%clk 0:00:58.6]} 52. Rd6 {[%clk 0:00:01.5]} 52... h5 {[%clk
0:00:58.7]} 53. Rd7 {[%clk 0:00:00.1]} 53... h4 {[%clk 0:00:58.9]} 0-1

[Event "Late-Titled-Tuesday-Blitz-May-14-2024"]
[Site "Chess.com"]
[Date "2024.05.14"]
[Round "1"]
[White "Bastiandash"]
[Black "ClayK1ng"]
[Result "1/2-1/2"]
[WhiteElo "2698"]
[BlackElo "2387"]
[TimeControl "180+1"]
[EndTime "14:07:14 PDT"]
[Termination "Game drawn by repetition"]

1. e4 {[%clk 0:03:00.9]} 1... d5 {[%clk 0:02:41.9]} 2. exd5 {[%clk 0:02:56.9]}
2... Qxd5 {[%clk 0:02:42.8]} 3. Nc3 {[%clk 0:02:57.4]} 3... Qe5+ {[%clk
0:02:43.1]} 4. Be2 {[%clk 0:02:55.1]} 4... Bg4 {[%clk 0:02:43.3]} 5. d4 {[%clk
0:02:50.7]} 5... Bxe2 {[%clk 0:02:43.7]} 6. Ngxe2 {[%clk 0:02:50.7]} 6... Qa5
{[%clk 0:02:43.5]} 7. O-O {[%clk 0:02:43.4]} 7... Nf6 {[%clk 0:02:43.8]} 8. d5
{[%clk 0:02:39]} 8... c6 {[%clk 0:02:43]} 9. Nf4 {[%clk 0:02:32.7]} 9... cxd5
{[%clk 0:02:41]} 10. Ncxd5 {[%clk 0:02:29.4]} 10... Nxd5 {[%clk 0:02:41.1]} 11.
Nxd5 {[%clk 0:02:16.9]} 11... e6 {[%clk 0:02:41.1]} 12. Re1 {[%clk 0:02:16.6]}
12... Be7 {[%clk 0:02:32]} 13. Nxe7 {[%clk 0:02:07.3]} 13... Kxe7 {[%clk
0:02:32.9]} 14. Bd2 {[%clk 0:02:02.2]} 14... Qb5 {[%clk 0:02:23.1]} 15. Bc3
{[%clk 0:01:53.5]} 15... Nc6 {[%clk 0:02:19.3]} 16. Bxg7 {[%clk 0:01:48.1]}
16... Rhg8 {[%clk 0:02:19.5]} 17. Bc3 {[%clk 0:01:46.9]} 17... Rad8 {[%clk
0:02:06]} 18. Qf3 {[%clk 0:01:42.9]} 18... Rg6 {[%clk 0:02:03.9]} 19. Rad1
{[%clk 0:01:40.3]} 19... Qc4 {[%clk 0:01:48.1]} 20. b3 {[%clk 0:01:34.2]} 20...
Qg4 {[%clk 0:01:39.8]} 21. Qxg4 {[%clk 0:01:20.7]} 21... Rxg4 {[%clk 0:01:40.7]}
22. Rxd8 {[%clk 0:01:20.3]} 22... Nxd8 {[%clk 0:01:41.6]} 23. f3 {[%clk
0:01:19.9]} 23... Rg8 {[%clk 0:01:37]} 24. Kf2 {[%clk 0:01:20.5]} 24... Nc6
{[%clk 0:01:37.5]} 25. Rd1 {[%clk 0:01:20.8]} 25... Rc8 {[%clk 0:01:36]} 26. Rd2
{[%clk 0:01:20.8]} 26... e5 {[%clk 0:01:33.8]} 27. g4 {[%clk 0:01:12.7]} 27...
f6 {[%clk 0:01:33.3]} 28. h4 {[%clk 0:01:12.2]} 28... Ke6 {[%clk 0:01:33.9]} 29.
a3 {[%clk 0:01:09.6]} 29... Ne7 {[%clk 0:01:33.9]} 30. Bb2 {[%clk 0:01:07.6]}
30... Nd5 {[%clk 0:01:33.1]} 31. c4 {[%clk 0:01:01.6]} 31... Nf4 {[%clk
0:01:31.2]} 32. Ke3 {[%clk 0:01:01.4]} 32... a6 {[%clk 0:01:28]} 33. Rc2 {[%clk
0:00:51.1]} 33... b5 {[%clk 0:01:21.6]} 34. Bc1 {[%clk 0:00:50.4]} 34... bxc4
{[%clk 0:01:19.3]} 35. bxc4 {[%clk 0:00:46.7]} 35... f5 {[%clk 0:01:09.8]} 36.
gxf5+ {[%clk 0:00:42.8]} 36... Kxf5 {[%clk 0:01:10.7]} 37. c5 {[%clk 0:00:42]}
37... Rc6 {[%clk 0:01:09.6]} 38. Rc4 {[%clk 0:00:31.6]} 38... Ne6 {[%clk
0:01:09]} 39. Kd3 {[%clk 0:00:09]} 39... Nxc5+ {[%clk 0:00:54.5]} 40. Kc3 {[%clk
0:00:07.4]} 40... Ke6 {[%clk 0:00:55.2]} 41. Be3 {[%clk 0:00:05.3]} 41... Kd5
{[%clk 0:00:55.8]} 42. Bxc5 {[%clk 0:00:03.4]} 42... Rxc5 {[%clk 0:00:56.7]} 43.
Rxc5+ {[%clk 0:00:04]} 43... Kxc5 {[%clk 0:00:57.6]} 44. Kd3 {[%clk 0:00:03.7]}
44... Kd5 {[%clk 0:00:55.9]} 45. Ke3 {[%clk 0:00:03.2]} 45... a5 {[%clk
0:00:51.2]} 46. a4 {[%clk 0:00:02.5]} 46... h5 {[%clk 0:00:46.2]} 47. Kd3 {[%clk
0:00:01.8]} 47... Kc5 {[%clk 0:00:46.3]} 48. Kc3 {[%clk 0:00:02.2]} 48... Kd5
{[%clk 0:00:46.4]} 49. Kd3 {[%clk 0:00:02.8]} 49... Kc5 {[%clk 0:00:47.1]} 50.
Kc3 {[%clk 0:00:03.3]} 50... Kd5 {[%clk 0:00:47.7]} 51. Kd3 {[%clk 0:00:03.9]}
1/2-1/2